fUST/lending_fUST_20250223
["ID","MTS","AMOUNT","RATE_DAILY","PERIOD"]
[354135127,1740275438399,-500.0,0.0001475,2]
[354135128,1740275438408,-500.0,0.0001475,2]
[354135129,1740275438418,-513.18,0.0001475,2]
[354135130,1740275438427,-500.0,0.0001475,2]
[354135131,1740275438436,-500.0,0.0001475,2]
[354135132,1740275438446,-500.0,0.0001475,2]
[354135133,1740275438456,-500.0,0.0001475,2]
[354135134,1740275438465,-645.38,0.0001475,2]
[354135135,1740275438474,-500.0,0.0001475,2]
[354135136,1740275438483,-1245.24,0.0001475,2]
[354135137,1740275438493,-500.0,0.0001475,2]
[354135138,1740275438503,-500.0,0.0001475,2]
[354135139,1740275438512,-500.0,0.0001475,2]
[354135140,1740275438521,-670.83,0.0001475,2]
[354135141,1740275438531,-500.0,0.0001475,2]
[354135142,1740275438540,-500.0,0.0001475,2]
[354135143,1740275438549,-500.0,0.0001475,2]
[354135144,1740275438558,-500.0,0.0001475,2]
[354135145,1740275438568,-1065.64,0.0001475,2]
[354135146,1740275438577,-120.00200504,0.0001475,2]
[354135147,1740275438759,-379.99799496,0.0001475,2]
[354135148,1740275438769,-500.0,0.0001475,2]
[354135149,1740275438778,-153.58733875,0.0001475,2]
[354135153,1740275440462,-346.41266125,0.0001475,2]
[354135154,1740275440471,-153.58733875,0.0001475,2]
[354135155,1740275440526,-346.41266125,0.0001475,2]
[354135156,1740275440536,-500.0,0.0001475,2]
[354135157,1740275440545,-500.0,0.0001475,2]
[354135158,1740275440554,-500.0,0.0001475,2]
[354135159,1740275440564,-500.0,0.0001475,2]
[354135160,1740275440573,-500.0,0.0001475,2]
[354135161,1740275440582,-500.0,0.0001475,2]
[354135162,1740275440591,-500.0,0.0001475,2]
[354135163,1740275440600,-500.0,0.0001475,2]
[354135164,1740275440609,-500.0,0.0001475,2]
[354135165,1740275440619,-500.0,0.0001475,2]
[354135166,1740275440628,-1109.39,0.0001475,2]
[354135167,1740275440637,-500.0,0.0001475,2]
[354135168,1740275440646,-500.0,0.0001475,2]
[354135169,1740275440655,-514.08180151,0.0001475,2]
[354135170,1740275440664,-500.0,0.0001475,2]
[354135171,1740275440673,-3301.53,0.0001475,2]
[354135172,1740275440682,-500.0,0.0001475,2]
[354135173,1740275440692,-500.0,0.0001475,2]
[354135174,1740275440701,-500.0,0.0001475,2]
[354135175,1740275440710,-7185.97,0.0001475,2]
[354135176,1740275440719,-500.0,0.0001475,2]
[354135177,1740275440728,-500.0,0.0001475,2]
[354135178,1740275440737,-500.0,0.0001475,2]
[354135179,1740275440746,-500.0,0.0001475,2]
[354135180,1740275440756,-500.0,0.0001475,2]
[354135181,1740275440765,-500.0,0.0001475,2]
[354135182,1740275440774,-441.13814493,0.00014751,2]
[354135183,1740275440783,-502.24728244,0.00014751,2]
[354135184,1740275440792,-501.54931882,0.00014751,2]
[354135185,1740275440802,-501.64698672,0.00014751,2]
[354135186,1740275440811,-502.42136159,0.00014751,2]
[354135187,1740275440820,-502.40267554,0.00014751,2]
[354135188,1740275440829,-503.60162829,0.00014751,2]
[354135189,1740275440838,-501.09743661,0.00014751,2]
[354135190,1740275440847,-501.31269144,0.00014751,2]
[354135191,1740275440857,-506.65408247,0.00014751,2]
[354135192,1740275440865,-501.32236821,0.00014751,2]
[354135193,1740275440874,-501.96103588,0.00014751,2]
[354135194,1740275440883,-503.46409696,0.00014751,2]
[354135195,1740275440892,-503.34996268,0.00014751,2]
[354135196,1740275440901,-500.91706768,0.00014751,2]
[354135197,1740275440913,-501.36094624,0.00014751,2]
[354135198,1740275440923,-500.0,0.00014751,2]
[354135199,1740275440933,-501.85936752,0.00014751,2]
[354135200,1740275440942,-500.7678751,0.00014751,2]
[354135201,1740275440951,-543.95247269,0.00014751,2]
[354135202,1740275440960,-249.7413422,0.00014751,2]
[354135203,1740275440970,-503.04340619,0.00014751,2]
[354135204,1740275440979,-500.9397574,0.00014751,2]
[354135205,1740275440989,-501.82738834,0.00014751,2]
[354135206,1740275440998,-505.42430094,0.00014751,2]
[354135207,1740275441011,-501.64949788,0.00014751,2]
[354135208,1740275441020,-565.3671985,0.00014751,2]
[354135209,1740275441029,-500.0,0.00014751,2]
[354135210,1740275441038,-503.34043483,0.00014751,2]
[354135211,1740275441047,-502.01451694,0.00014751,2]
[354135212,1740275441058,-314.91323346,0.00014751,2]
[354135213,1740275441067,-500.0,0.00014751,2]
[354135214,1740275441076,-500.0,0.00014751,2]
[354135215,1740275441086,-500.0,0.00014751,2]
[354135216,1740275441095,-500.0,0.00014751,2]
[354135217,1740275441104,-500.6873793,0.00014751,2]
[354135218,1740275441114,-500.0,0.00014751,2]
[354135219,1740275441123,-504.65862442,0.00014751,2]
[354135220,1740275441132,-503.48086526,0.00014751,2]
[354135221,1740275441141,-502.47097467,0.00014751,2]
[354135222,1740275441151,-501.11236414,0.00014751,2]
[354135223,1740275441160,-502.30288957,0.00014751,2]
[354135224,1740275441170,-500.0,0.00014751,2]
[354135225,1740275441179,-505.95261387,0.00014751,2]
[354135226,1740275441190,-505.68291952,0.00014751,2]
[354135227,1740275441199,-500.0,0.00014751,2]
[354135228,1740275441208,-500.0,0.00014751,2]
[354135229,1740275441217,-505.69988613,0.00014751,2]
[354135230,1740275441226,-500.0,0.00014751,2]
[354135231,1740275441235,-500.0,0.00014751,2]
[354135232,1740275441244,-500.0,0.00014751,2]
[354135233,1740275441254,-505.07484295,0.00014751,2]
[354135234,1740275441263,-500.0,0.00014751,2]
[354135235,1740275441272,-505.38285868,0.00014751,2]
[354135236,1740275441282,-500.0,0.00014751,2]
[354135237,1740275441291,-500.0,0.00014751,2]
[354135238,1740275441300,-500.0,0.00014751,2]
[354135239,1740275441309,-500.0,0.00014751,2]
[354135240,1740275441318,-500.0,0.00014751,2]
[354135241,1740275441327,-500.0,0.00014751,2]
[354135242,1740275441338,-500.0,0.00014751,2]
[354135243,1740275441348,-1781.7,0.00014751,2]
[354135244,1740275441357,-500.0,0.00014751,2]
[354135245,1740275441367,-500.0,0.00014751,2]
[354135246,1740275441376,-500.0,0.00014751,2]
[354135247,1740275441386,-501.10947771,0.00014751,2]
[354135248,1740275441395,-500.43480581,0.00014752,2]
[354135249,1740275441404,-501.12886246,0.00014752,2]
[354135250,1740275441414,-501.09617883,0.00014752,2]
[354135251,1740275441424,-501.12113235,0.00014752,2]
[354135252,1740275441433,-501.13906574,0.00014752,2]
[354135253,1740275441442,-500.0,0.00014832,2]
[354135254,1740275441452,-500.0,0.00014832,2]
[354135255,1740275441461,-500.0,0.00014832,2]
[354135256,1740275441470,-500.0,0.00014832,2]
[354135257,1740275441479,-500.0,0.00014832,2]
[354135258,1740275441488,-500.0,0.00014832,2]
[354135259,1740275441498,-500.0,0.00014832,2]
[354135260,1740275441507,-500.0,0.00014832,2]
[354135261,1740275441517,-1415.8,0.00014832,2]
[354135262,1740275441526,-500.0,0.00014832,2]
[354135263,1740275441536,-500.0,0.00014832,2]
[354135264,1740275441545,-513.18,0.00014832,2]
[354135265,1740275441554,-500.0,0.00014832,2]
[354135266,1740275441563,-500.0,0.00014832,2]
[354135267,1740275441572,-500.0,0.00014832,2]
[354135268,1740275441582,-500.0,0.00014832,2]
[354135269,1740275441591,-645.38,0.00014832,2]
[354135270,1740275441600,-500.0,0.00014832,2]
[354135271,1740275441609,-1245.24,0.00014832,2]
[354135272,1740275441618,-500.0,0.00014832,2]
[354135273,1740275441627,-500.0,0.00014832,2]
[354135274,1740275441636,-500.0,0.00014832,2]
[354135275,1740275441645,-670.83,0.00014832,2]
[354135276,1740275441655,-500.0,0.00014832,2]
[354135277,1740275441664,-500.0,0.00014832,2]
[354135278,1740275441674,-500.0,0.00014832,2]
[354135279,1740275441683,-500.0,0.00014832,2]
[354135280,1740275441691,-1065.64,0.00014832,2]
[354135281,1740275441701,-500.0,0.00014832,2]
[354135282,1740275441710,-500.0,0.00014832,2]
[354135283,1740275441719,-500.0,0.00014832,2]
[354135284,1740275441729,-500.0,0.00014832,2]
[354135285,1740275441739,-500.0,0.00014832,2]
[354135286,1740275441748,-500.0,0.00014832,2]
[354135287,1740275441758,-500.0,0.00014832,2]
[354135288,1740275441768,-500.0,0.00014832,2]
[354135289,1740275441778,-500.0,0.00014832,2]
[354135290,1740275441787,-500.0,0.00014832,2]
[354135291,1740275441798,-500.0,0.00014832,2]
[354135292,1740275441806,-500.0,0.00014832,2]
[354135293,1740275441816,-500.0,0.00014832,2]
[354135294,1740275441826,-500.0,0.00014832,2]
[354135295,1740275441836,-1109.39,0.00014832,2]
[354135296,1740275441846,-500.0,0.00014832,2]
[354135297,1740275441855,-500.0,0.00014832,2]
[354135298,1740275441864,-500.0,0.00014832,2]
[354135299,1740275441874,-3301.53,0.00014832,2]
[354135300,1740275441883,-500.0,0.00014832,2]
[354135301,1740275441892,-500.0,0.00014832,2]
[354135302,1740275441902,-500.0,0.00014832,2]
[354135303,1740275441911,-7185.97,0.00014832,2]
[354135304,1740275441920,-500.0,0.00014832,2]
[354135305,1740275441930,-500.0,0.00014832,2]
[354135306,1740275441939,-500.0,0.00014832,2]
[354135307,1740275441948,-318.61037545,0.00014832,2]
[354135308,1740275441956,-500.0,0.00014832,2]
[354135309,1740275441966,-500.0,0.00014832,2]
[354135310,1740275441975,-505.46135817,0.00014833,2]
[354135311,1740275441985,-506.58715402,0.00014833,2]
[354135312,1740275441995,-500.0,0.00014833,2]
[354135313,1740275442004,-500.0,0.00014833,2]
[354135314,1740275442016,-500.0,0.00014833,2]
[354135315,1740275442026,-500.0,0.00014833,2]
[354135316,1740275442035,-500.0,0.00014833,2]
[354135317,1740275442044,-506.83776423,0.00014833,2]
[354135318,1740275442053,-500.0,0.00014833,2]
[354135319,1740275442063,-500.0,0.00014833,2]
[354135320,1740275442073,-500.0,0.00014833,2]
[354135321,1740275442084,-500.0,0.00014833,2]
[354135322,1740275442095,-500.0,0.00014833,2]
[354135323,1740275442106,-500.0,0.00014833,2]
[354135324,1740275442115,-500.0,0.00014833,2]
[354135325,1740275442125,-500.0,0.00014833,2]
[354135326,1740275442135,-500.0,0.00014833,2]
[354135327,1740275442144,-500.0,0.00014833,2]
[354135328,1740275442152,-500.0,0.00014833,2]
[354135329,1740275442161,-500.0,0.00014833,2]
[354135330,1740275442171,-500.0,0.00014833,2]
[354135331,1740275442180,-1781.7,0.00014833,2]
[354135332,1740275442191,-500.0,0.00014833,2]
[354135333,1740275442200,-500.0,0.00014833,2]
[354135334,1740275442209,-500.0,0.00014833,2]
[354135335,1740275442219,-4736.96066309,0.00014898,2]
[354135336,1740275442229,-6410.5864875,0.000149,2]
[354135337,1740275442238,-3205.29324375,0.00014906,2]
[354135338,1740275442248,-500.0,0.00014915,2]
[354135339,1740275442257,-500.0,0.00014915,2]
[354135340,1740275442267,-500.0,0.00014915,2]
[354135341,1740275442276,-500.0,0.00014915,2]
[354135342,1740275442285,-500.0,0.00014915,2]
[354135343,1740275442294,-500.0,0.00014915,2]
[354135344,1740275442303,-500.0,0.00014915,2]
[354135345,1740275442313,-500.0,0.00014915,2]
[354135346,1740275442323,-1415.8,0.00014915,2]
[354135347,1740275442333,-500.0,0.00014915,2]
[354135348,1740275442342,-509.10088393,0.00014915,2]
[354135349,1740275442351,-513.18,0.00014915,2]
[354135350,1740275442361,-500.0,0.00014915,2]
[354135351,1740275442370,-500.0,0.00014915,2]
[354135352,1740275442379,-500.0,0.00014915,2]
[354135353,1740275442388,-500.0,0.00014915,2]
[354135354,1740275442398,-645.38,0.00014915,2]
[354135355,1740275442408,-500.0,0.00014915,2]
[354135356,1740275442417,-1245.24,0.00014915,2]
[354135357,1740275442426,-500.0,0.00014915,2]
[354135358,1740275442437,-500.0,0.00014915,2]
[354135359,1740275442447,-500.0,0.00014915,2]
[354135360,1740275442456,-670.83,0.00014915,2]
[354135361,1740275442466,-500.0,0.00014915,2]
[354135362,1740275442475,-500.0,0.00014915,2]
[354135363,1740275442485,-500.0,0.00014915,2]
[354135364,1740275442494,-500.0,0.00014915,2]
[354135365,1740275442503,-1065.64,0.00014915,2]
[354135366,1740275442514,-500.0,0.00014915,2]
[354135367,1740275442523,-500.0,0.00014915,2]
[354135368,1740275442532,-500.0,0.00014915,2]
[354135369,1740275442542,-500.0,0.00014915,2]
[354135370,1740275442551,-500.0,0.00014915,2]
[354135371,1740275442560,-500.0,0.00014915,2]
[354135372,1740275442570,-500.0,0.00014915,2]
[354135373,1740275442579,-500.0,0.00014915,2]
[354135377,1740275442677,-500.0,0.00014915,2]
[354135379,1740275442687,-451.76195016,0.00014915,2]
[354135381,1740275442697,-500.0,0.00014915,2]
[354135383,1740275442706,-500.0,0.00014915,2]
[354135385,1740275442715,-500.0,0.00014915,2]
[354135387,1740275442725,-500.0,0.00014915,2]
[354135389,1740275442734,-1109.39,0.00014915,2]
[354135390,1740275442744,-500.0,0.00014915,2]
[354135391,1740275442753,-500.0,0.00014915,2]
[354135392,1740275442762,-500.0,0.00014915,2]
[354135393,1740275442772,-3301.53,0.00014915,2]
[354135394,1740275442781,-500.0,0.00014915,2]
[354135395,1740275442791,-500.0,0.00014915,2]
[354135396,1740275442801,-500.0,0.00014915,2]
[354135397,1740275442810,-7185.97,0.00014915,2]
[354135399,1740275442819,-500.0,0.00014915,2]
[354135400,1740275442829,-500.0,0.00014915,2]
[354135401,1740275442838,-500.0,0.00014915,2]
[354135403,1740275442848,-500.0,0.00014915,2]
[354135404,1740275442857,-500.0,0.00014915,2]
[354135405,1740275442866,-500.0,0.00014916,2]
[354135406,1740275442875,-434.85758015,0.00014916,2]
[354135407,1740275442885,-500.0,0.00014916,2]
[354135408,1740275442894,-500.0,0.00014916,2]
[354135409,1740275442904,-500.0,0.00014916,2]
[354135410,1740275442914,-500.0,0.00014916,2]
[354135411,1740275442923,-500.0,0.00014916,2]
[354135412,1740275442932,-500.0,0.00014916,2]
[354135413,1740275442942,-500.0,0.00014916,2]
[354135415,1740275442951,-500.0,0.00014916,2]
[354135417,1740275442960,-500.0,0.00014916,2]
[354135419,1740275442969,-500.0,0.00014916,2]
[354135421,1740275442979,-500.0,0.00014916,2]
[354135423,1740275442988,-500.0,0.00014916,2]
[354135425,1740275442997,-500.0,0.00014916,2]
[354135427,1740275443007,-500.0,0.00014916,2]
[354135428,1740275443020,-500.0,0.00014916,2]
[354135429,1740275443029,-500.0,0.00014916,2]
[354135430,1740275443038,-1781.7,0.00014916,2]
[354135431,1740275443048,-500.0,0.00014916,2]
[354135432,1740275443058,-500.0,0.00014916,2]
[354135433,1740275443067,-500.0,0.00014916,2]
[354135434,1740275443077,-174.005,0.00014923,2]
[354135435,1740275443086,-500.70906731,0.00014973,2]
[354135437,1740275443096,-500.0,0.00014973,2]
[354135439,1740275443105,-588.16130816,0.00014973,2]
[354135440,1740275443114,-500.29863877,0.00014973,2]
[354135442,1740275443123,-500.10290801,0.00014973,2]
[354135443,1740275443132,-500.0,0.00014973,2]
[354135444,1740275443142,-500.0,0.00014973,2]
[354135445,1740275443151,-502.47157931,0.00014973,2]
[354135446,1740275443160,-622.1309853,0.00014973,2]
[354135447,1740275443169,-500.0,0.00014973,2]
[354135448,1740275443178,-500.0,0.00014973,2]
[354135449,1740275443188,-500.0,0.00014973,2]
[354135450,1740275443198,-500.0,0.00014973,2]
[354135451,1740275443207,-171.12504259,0.00014973,2]
[354135452,1740275443216,-500.0,0.00014973,2]
[354135454,1740275443226,-500.0,0.00014973,2]
[354135455,1740275443235,-500.0,0.00014973,2]
[354135456,1740275443245,-509.04158611,0.00014973,2]
[354135457,1740275443255,-156.90533495,0.00014973,2]
[354135458,1740275443264,-251.51484246,0.00014973,2]
[354135459,1740275443273,-500.0,0.00014973,2]
[354135460,1740275443282,-500.0,0.00014973,2]
[354135462,1740275443292,-6410.5864875,0.00014978,2]
[354135463,1740275443302,-3205.29324375,0.00014987,2]
[354135464,1740275443311,-44874.1054125,0.00014988,2]
[354135465,1740275443320,-500.0,0.00014996,2]
[354135466,1740275443329,-570.87010378,0.00014996,2]
[354135467,1740275443338,-500.0,0.00014997,2]
[354135468,1740275443348,-500.0,0.00014997,2]
[354135469,1740275443357,-500.0,0.00014997,2]
[354135470,1740275443366,-500.0,0.00014997,2]
[354135471,1740275443375,-500.0,0.00014997,2]
[354135472,1740275443384,-500.0,0.00014997,2]
[354135473,1740275443395,-373.61986197,0.00014997,2]
[354135474,1740275443405,-510.20025937,0.00014997,2]
[354135475,1740275443415,-1415.8,0.00014997,2]
[354135476,1740275443426,-500.0,0.00014997,2]
[354135477,1740275443436,-513.18,0.00014997,2]
[354135478,1740275443446,-500.0,0.00014997,2]
[354135479,1740275443456,-500.0,0.00014997,2]
[354135480,1740275443467,-500.0,0.00014997,2]
[354135481,1740275443477,-500.0,0.00014997,2]
[354135482,1740275443486,-645.38,0.00014997,2]
[354135483,1740275443495,-500.0,0.00014997,2]
[354135484,1740275443505,-1245.24,0.00014997,2]
[354135485,1740275443514,-500.0,0.00014997,2]
[354135487,1740275443524,-500.0,0.00014997,2]
[354135488,1740275443533,-500.0,0.00014997,2]
[354135489,1740275443543,-670.83,0.00014997,2]
[354135490,1740275443552,-500.0,0.00014997,2]
[354135491,1740275443562,-500.0,0.00014997,2]
[354135492,1740275443571,-500.0,0.00014997,2]
[354135493,1740275443580,-500.0,0.00014997,2]
[354135494,1740275443589,-1065.64,0.00014997,2]
[354135495,1740275443599,-500.0,0.00014997,2]
[354135496,1740275443607,-500.0,0.00014997,2]
[354135497,1740275443616,-581.07836283,0.00014997,2]
[354135498,1740275443625,-500.0,0.00014997,2]
[354135499,1740275443634,-500.0,0.00014997,2]
[354135500,1740275443644,-265.953402,0.00014997,2]
[354135501,1740275443653,-500.0,0.00014997,2]
[354135502,1740275443663,-500.0,0.00014997,2]
[354135503,1740275443680,-500.0,0.00014997,2]
[354135504,1740275443689,-500.0,0.00014997,2]
[354135505,1740275443698,-500.0,0.00014997,2]
[354135506,1740275443707,-500.0,0.00014997,2]
[354135507,1740275443716,-500.0,0.00014997,2]
[354135508,1740275443725,-1109.39,0.00014997,2]
[354135509,1740275443734,-500.0,0.00014997,2]
[354135510,1740275443743,-500.0,0.00014997,2]
[354135511,1740275443753,-500.0,0.00014997,2]
[354135512,1740275443762,-3301.53,0.00014997,2]
[354135513,1740275443771,-500.0,0.00014997,2]
[354135514,1740275443780,-500.0,0.00014997,2]
[354135515,1740275443790,-500.0,0.00014997,2]
[354135516,1740275443799,-7185.97,0.00014997,2]
[354135517,1740275443808,-500.0,0.00014997,2]
[354135518,1740275443817,-500.0,0.00014997,2]
[354135519,1740275443826,-500.0,0.00014997,2]
[354135520,1740275443836,-500.0,0.00014997,2]
[354135521,1740275443845,-500.0,0.00014997,2]
[354135522,1740275443854,-5502.55281066,0.00014998,5]
[354135523,1740275443863,-2817.16706167,0.00014998,5]
[354135524,1740275443872,-375919.05629199,0.00014998,5]
[354135525,1740275443998,-149871.80552384,0.00014998,5]
[354135569,1740275446342,-317.40493694,0.0001475,2]
[354135584,1740275446746,-19.20663983,0.0001475,2]
[354135585,1740275725664,980.48473691,0.00018259,120]
[354135597,1740276392985,262.645161,9.041e-05,2]
[354135666,1740276632588,-500.0,0.00014164,2]
[354135667,1740276632598,-12035.57286363,0.00014706,2]
[354135668,1740276632642,-889.32388071,0.00014706,2]
[354135669,1740276632651,-1043.96582368,0.00014717,2]
[354135670,1740276632695,-445.79680045,0.00014717,2]
[354135671,1740276632707,-1073.36140284,0.00014717,2]
[354135672,1740276632752,-962.0,0.00014717,2]
[354135673,1740276632765,-463.04724669,0.00014717,2]
[354135674,1740276632779,-2499.999995,0.00014717,2]
[354135675,1740276632790,-374.05366051,0.00014717,2]
[354135691,1740276640790,-6417.32096006,0.00014717,2]
[354135692,1740276640800,-816.18335133,0.0001475,4]
[354135693,1740276640811,-500.0,0.0001475,2]
[354135694,1740276640826,-500.0,0.0001475,2]
[354135695,1740276640839,-500.0,0.0001475,2]
[354135696,1740276640849,-500.0,0.0001475,2]
[354135697,1740276640858,-500.0,0.0001475,2]
[354135698,1740276640867,-500.0,0.0001475,2]
[354135699,1740276640877,-500.0,0.0001475,2]
[354135700,1740276640886,-500.0,0.0001475,2]
[354135701,1740276640896,-500.0,0.0001475,2]
[354135702,1740276640905,-500.0,0.0001475,2]
[354135703,1740276640914,-500.0,0.0001475,2]
[354135704,1740276640923,-621.53231473,0.0001475,2]
[354135705,1740276640933,-500.0,0.0001475,2]
[354135706,1740276640943,-500.0,0.0001475,2]
[354135707,1740276640953,-500.0,0.0001475,2]
[354135708,1740276640962,-500.0,0.0001475,2]
[354135709,1740276640972,-500.0,0.0001475,2]
[354135710,1740276640981,-500.0,0.0001475,2]
[354135711,1740276640990,-500.0,0.0001475,2]
[354135712,1740276641000,-888.03,0.0001475,2]
[354135713,1740276641009,-194.70671649,0.0001475,2]
[354135714,1740276641018,-500.0,0.0001475,2]
[354135715,1740276641027,-500.0,0.0001475,2]
[354135716,1740276641037,-509.10088393,0.0001475,2]
[354135717,1740276641047,-1297.81,0.0001475,2]
[354135718,1740276641056,-500.0,0.0001475,2]
[354135719,1740276641066,-500.0,0.0001475,2]
[354135720,1740276641075,-500.0,0.0001475,2]
[354135721,1740276641085,-500.0,0.0001475,2]
[354135722,1740276641095,-1707.46,0.0001475,2]
[354135723,1740276641104,-500.0,0.0001475,2]
[354135724,1740276641115,-500.0,0.0001475,2]
[354135725,1740276641124,-591.6,0.0001475,2]
[354135726,1740276641133,-500.0,0.0001475,2]
[354135727,1740276641142,-1141.47,0.0001475,2]
[354135728,1740276641152,-500.0,0.0001475,2]
[354135729,1740276641162,-505.46135817,0.0001475,2]
[354135730,1740276641171,-500.0,0.0001475,2]
[354135731,1740276641180,-500.0,0.0001475,2]
[354135732,1740276641190,-500.0,0.0001475,2]
[354135733,1740276641199,-500.0,0.0001475,2]
[354135734,1740276641209,-642.88,0.0001475,2]
[354135735,1740276641219,-500.0,0.0001475,2]
[354135736,1740276641228,-500.0,0.0001475,2]
[354135737,1740276641237,-500.0,0.0001475,2]
[354135738,1740276641247,-500.0,0.0001475,2]
[354135739,1740276641256,-500.0,0.0001475,2]
[354135740,1740276641265,-500.0,0.0001475,2]
[354135741,1740276641274,-500.0,0.0001475,2]
[354135742,1740276641284,-500.0,0.0001475,2]
[354135743,1740276641293,-500.0,0.0001475,2]
[354135744,1740276641303,-500.0,0.0001475,2]
[354135745,1740276641312,-500.0,0.0001475,2]
[354135746,1740276641321,-500.0,0.0001475,2]
[354135747,1740276641331,-500.0,0.0001475,2]
[354135748,1740276641340,-500.0,0.0001475,2]
[354135749,1740276641350,-502.47097467,0.0001475,2]
[354135750,1740276641359,-501.11236414,0.0001475,2]
[354135751,1740276641368,-500.0,0.0001475,2]
[354135752,1740276641378,-500.0,0.0001475,2]
[354135753,1740276641387,-503.48086526,0.0001475,2]
[354135754,1740276641399,-500.0,0.0001475,2]
[354135755,1740276641408,-500.0,0.0001475,2]
[354135756,1740276641419,-502.30288957,0.0001475,2]
[354135757,1740276641432,-500.0,0.0001475,2]
[354135758,1740276641442,-500.0,0.0001475,2]
[354135759,1740276641451,-514.08180151,0.0001475,2]
[354135760,1740276641462,-500.0,0.0001475,2]
[354135761,1740276641471,-500.0,0.0001475,2]
[354135762,1740276641481,-500.0,0.0001475,2]
[354135763,1740276641490,-500.0,0.0001475,2]
[354135764,1740276641499,-500.0,0.0001475,2]
[354135765,1740276641509,-500.0,0.0001475,2]
[354135766,1740276641518,-1109.39,0.0001475,2]
[354135767,1740276641527,-500.0,0.0001475,2]
[354135768,1740276641536,-3301.53,0.0001475,2]
[354135769,1740276641546,-505.95261387,0.0001475,2]
[354135770,1740276641555,-500.0,0.0001475,2]
[354135771,1740276641566,-500.0,0.0001475,2]
[354135772,1740276641575,-500.0,0.0001475,2]
[354135773,1740276641584,-7185.97,0.0001475,2]
[354135774,1740276641594,-505.68291952,0.0001475,2]
[354135775,1740276641603,-500.0,0.0001475,2]
[354135776,1740276641613,-500.0,0.0001475,2]
[354135777,1740276641622,-501.10947771,0.0001475,2]
[354135778,1740276641632,-500.0,0.0001475,2]
[354135779,1740276641641,-511.24417759,0.0001475,2]
[354135780,1740276641650,-500.0,0.0001475,2]
[354135781,1740276641660,-500.0,0.0001475,2]
[354135782,1740276641669,-500.0,0.0001475,2]
[354135783,1740276641678,-500.43480581,0.0001475,2]
[354135784,1740276641687,-500.0,0.0001475,2]
[354135785,1740276641697,-500.0,0.0001475,2]
[354135786,1740276641706,-500.0,0.00014832,2]
[354135787,1740276641716,-519.32224101,0.00014832,2]
[354135788,1740276641725,-508.37962303,0.00014832,2]
[354135789,1740276641734,-500.0,0.00014832,2]
[354135790,1740276641744,-500.0,0.00014832,2]
[354135791,1740276641753,-500.0,0.00014832,2]
[354135792,1740276641887,-333.19807125,0.00014832,2]
[354135793,1740276641899,-500.0,0.00014832,2]
[354135794,1740276641909,-618.17619588,0.00014832,2]
[354135795,1740276641919,-500.0,0.00014832,2]
[354135796,1740276641928,-514.88140452,0.00014832,2]
[354135797,1740276641937,-174.89905902,0.00014832,2]
[354135798,1740276641948,-500.0,0.00014832,2]
[354135799,1740276641958,-500.0,0.00014832,2]
[354135800,1740276641968,-577.19376363,0.00014832,2]
[354135801,1740276641977,-371.56152268,0.00014832,2]
[354135802,1740276641988,-500.0,0.00014832,2]
[354135803,1740276641998,-888.03,0.00014832,2]
[354135804,1740276642008,-500.0,0.00014832,2]